Cogmind - Beta 16 @@@ ROGUE MODE // 2025.10.30 @ 23:41:40 Player: Roadie Result: Destroyed by W1-3O4(R) with Subdweller Beam Cannon Performance ------------- Evolutions (0) 0 Regions Visited (3) 600 Robots Destroyed (23) 115 Value Destroyed (544) 544 Prototype IDs (0) 0 Alien Tech Used (0) 0 Bonus (0) 0 TOTAL SCORE: 1259 Bonus ------- None Cogmind --------- Core Integrity 0/250 Matter 137/300 Energy 99/100 System Corruption 0% Temperature Cool (9) Movement Core (200) Ox3 Location -10/Subcaves Parts ------- > --- POWER (1) -------- (None) > --- PROPULSION (2) --- (None) > --- UTILITY (2) ------ Medium Storage Unit > --- WEAPON (2) ------- (None) > --- INVENTORY (10) --- Ion Engine Aluminum Leg Aluminum Leg Large Storage Unit Scrap Shield Peak State ------------ > --- POWER ------------ Light Nuclear Core > --- PROPULSION ------- Wheel Compact Wheel > --- UTILITY ---------- Improved Heat Sink Medium Storage Unit > --- WEAPON ----------- Assault Rifle Assault Rifle > --- INVENTORY -------- Ion Engine Ion Engine Aluminum Leg Aluminum Leg Improved Heat Sink Large Storage Unit Assault Rifle Grenade Launcher Grenade Launcher [Rating: 12] Favorites ----------- Power Light Nuclear Core Engine Ion Engine Power Core Light Nuclear Core Propulsion Aluminum Leg Leg Aluminum Leg Wheel Compact Wheel Utility Medium Storage Unit Device Improved Heat Sink Storage Medium Storage Unit Protection Power Shielding Weapon Assault Rifle Ballistic Gun Assault Rifle Launcher Grenade Launcher Build | -11 -10 -10 -10 ------- Run | Yrd Mat Min Sub Slots Evolved . | . . . . Power . | . . . . Propulsion . | . . . . Utility . | . . . . Weapon . | . . . . Parts Attached 19 | 7 6 3 3 Power 3 | 1 1 . 1 Engine 2 | 1 . . 1 Core 1 | . 1 . . Reactor . | . . . . Propulsion 4 | 2 . 2 . Treads . | . . . . Leg 2 | . . 2 . Wheel 2 | 2 . . . Hover . | . . . . Flight . | . . . . Utility 6 | 1 4 1 . Device 2 | . 1 1 . Storage 3 | 1 2 . . Processor . | . . . . Hackware . | . . . . Protection 1 | . 1 . . Artifact . | . . . . Weapon 6 | 3 1 . 2 Energy Gun . | . . . . Energy Cannon . | . . . . Ballistic Gun 4 | 3 1 . . Ballistic Cannon . | . . . . Launcher 2 | . . . 2 Special Weapon . | . . . . Impact Weapon . | . . . . Slashing Weapon . | . . . . Piercing Weapon . | . . . . Special Melee Weapon . | . . . . Unidentified Prototypes . | . . . . Parts Lost 10 | . . 1 9 Power 2 | . . 1 1 Propulsion 2 | . . . 2 Utility 1 | . . . 1 Weapon 5 | . . . 5 Highest Loss Streak 8 | . . 1 8 To Critical Strikes . | . . . . Average Backups 7 | 3 6 8 8 Power 1 | . 1 2 1 Propulsion 2 | 1 2 2 2 Utility . | . . 1 1 Weapon 2 | . 2 3 2 Tool/Special . | . . . . Unused Backups 3 | . . . 3 Power . | . . . . Propulsion 2 | . . . 2 Utility 1 | . . . 1 Weapon . | . . . . Tool/Special . | . . . . Average Slot Usage (%) 91 | . 97 92 81 Engine 3 | . 8 . 1 Core 4 | . 5 7 . Leg 15 | . . 23 25 Wheel 12 | . 28 4 . Device 10 | . 5 14 12 Storage 14 | . 14 14 14 Protection 2 | . 5 . . Ballistic Gun 26 | . 28 28 21 Launcher 1 | . . . 5 Peak Build Rating 12 | 6 11 12 10 Average Rating 8 | 3 8 9 8 On Entrance 6 | . 6 11 8 Avg Prop Armor Cover (%) . | . . . . Naked Turns . | . . . . Heaviest Build 22 | 14 20 20 22 Greatest Support 26 | 26 26 26 20 Greatest Overweight (x) 4 | . . . 4 Average Overweight (x) . | . . . . Largest Inventory Capacity 15 | 8 15 10 10 Average Capacity 9 | 6 8 10 10 Most Carried 10 | 5 8 10 10 Average Carried 7 | 3 6 8 9 Final Capacity 10 | 8 10 10 10 Final Carried 8 | 4 8 8 6 Class Distribution -------------------- 100% | Mutant Dominant Class ---------------- Mutant | -10/Materials Mutant | -10/Mines Mutant | -10/Subcaves Resources | -11 -10 -10 -10 ----------- Run | Yrd Mat Min Sub Matter Collected 455 | 127 119 127 82 Remotely . | . . . . Salvage Created 506 | . 156 127 223 Parts 33 | . 12 10 11 Haulers Intercepted . | . . . . Recyclers Shooed . | . . . . Parts Field Recycled . | . . . . Retrieved Matter . | . . . . Parts Self-Destructed 2 | . . . 2 Prevented . | . . . . Parts Restored . | . . . . Kills | -11 -10 -10 -10 ------- Run | Yrd Mat Min Sub Combat Hostiles Destroyed 22 | . 7 5 10 Guns 15 | . 7 5 3 AOE 7 | . . . 7 Classes Destroyed 4 | . 3 . 1 Watcher 1 | . 1 . . Swarmer 12 | . 6 3 3 Grunt 3 | . 1 2 . Subdweller 7 | . . . 7 Best Kill Streak 4 | . 3 3 4 Combat Bots Only 4 | . 3 3 4 Max Kills in Single Turn 4 | . 1 1 4 Gunslinging 1 | . . . 1 Exploded 4 | . . . 4 Melee . | . . . . Uniques/NPCs Destroyed . | . . . . Combat | -11 -10 -10 -10 -------- Run | Yrd Mat Min Sub Hostile Shots Fired 78 | . 21 22 35 Missed 20 | . 5 6 9 Hits 58 | . 16 16 26 Projectile 58 | . 16 16 26 AOE 6 | . . . 6 Critical Strikes 3 | . . . 3 Damage Taken 1126 | . 140 197 789 Core 276 | . 27 30 219 Absorbed by Shields . | . . . . Core Remaining (%) 100 | 100 . . . Volleys Fired 36 | . 14 15 7 Largest 2 | . 2 2 2 Hottest 60 | . 40 40 60 Shots Fired 71 | . 28 30 13 Gun 66 | . 28 30 8 Cannon . | . . . . Launcher 5 | . . . 5 Special . | . . . . Kinetic 66 | . 28 30 8 Thermal . | . . . . Explosive 5 | . . . 5 Electromagnetic . | . . . . Robot Hit Streak 5 | . 5 4 2 Robot Miss Streak 2 | . 2 2 1 Penetration Max . | . . . . Secondary Targets 3 | . . 1 2 Max Gunslinging Chain 1 | . . 1 1 Shots Hit Robots 38 | . 17 15 6 Core Hits 33 | . 10 7 16 Critical Kills . | . . . . Critical Parts Destroyed . | . . . . Critical Strikes . | . . . . Melee Attacks . | . . . . Impact . | . . . . Slashing . | . . . . Piercing . | . . . . Sneak Attacks . | . . . . Combat Hostiles . | . . . . Follow-up Attacks . | . . . . Damage Inflicted 1194 | . 213 174 807 Guns 470 | . 213 174 83 Cannons . | . . . . Explosions 724 | . . . 724 Melee . | . . . . Ramming . | . . . . Kinetic 470 | . 213 174 83 Thermal . | . . . . Explosive 724 | . . . 724 Electromagnetic . | . . . . Impact . | . . . . Slashing . | . . . . Piercing . | . . . . Highest Corruption . | . . . . Average Corruption . | . . . . Corruption Purged . | . . . . Corruption Blocked . | . . . . Overload Shots . | . . . . Overflow Damage . | . . . . Projectiles . | . . . . Explosions . | . . . . Melee . | . . . . Knockbacks . | . . . . Impact . | . . . . Kinetic . | . . . . Secondary . | . . . . Self-Inflicted Damage . | . . . . Shots . | . . . . Rammed . | . . . . Targets Rammed . | . . . . Kicked . | . . . . Crushed . | . . . . Highest Temperature 377 | . 2 . 377 Average Temperature 154 | . 2 . 174 Received Heat Transfer 1046 | . 27 81 938 Siege Activations . | . . . . Martial Activations . | . . . . Shielding Activations . | . . . . Robots Disrupted . | . . . . Combat Hostiles . | . . . . Robots Corrupted . | . . . . Combat Hostiles . | . . . . Parts Fried . | . . . . Impact Corruptions . | . . . . Robots Melted . | . . . . Combat Hostiles . | . . . . Parts Melted . | . . . . Heat Transferred . | . . . . Parts Sabotaged . | . . . . Parts Stolen . | . . . . Parts Stripped . | . . . . Power Chain Reactions . | . . . . Alert | -11 -10 -10 -10 ------- Run | Yrd Mat Min Sub Maximum Alert Level . | . . . . Low Security (%) 100 | 100 100 100 . Level 1 . | . . . . Level 2 . | . . . . Level 3 . | . . . . Level 4 . | . . . . Level 5 . | . . . . High Security . | . . . . Max Security . | . . . . Peak Influence 122 | . 122 87 . Initial 47 | . . 47 . Average 40 | . 35 53 . Influence Increases 382 | . 192 120 70 Destroy 0b10 Robot/C 300 | . 140 100 60 Destroy 0b10 Robot/NC 5 | . 5 . . Destroy Leader 62 | . 32 20 10 Lose Combat Pursuer 15 | . 15 . . Influence Decreases 382 | . 70 225 87 Entered New Map 84 | . . 75 9 Time Decay 268 | . 70 140 58 Lost Part 30 | . . 10 20 Squads Dispatched 1 | . 1 . . Investigation . | . . . . Extermination . | . . . . Reinforcement 1 | . 1 . . Assault . | . . . . Garrison . | . . . . Intercept . | . . . . Searches Triggered . | . . . . Construction Impeded . | . . . . Haulers Reinforced . | . . . . Active Scanning Responses . | . . . . Cargo Convoy Interrupts . | . . . . Stealth | -11 -10 -10 -10 --------- Run | Yrd Mat Min Sub Distress Signals 1 | . 1 . . Communications Jammed . | . . . . Distress Signals . | . . . . Times Spotted 29 | . 10 5 14 Peak Tracking Total 9 | . 3 3 9 Tactical Retreats 1 | . 1 . . Traps | -11 -10 -10 -10 ------- Run | Yrd Mat Min Sub Traps Triggered . | . . . . Indirectly . | . . . . Trap Hack Attempts . | . . . . Triggered . | . . . . Disarmed . | . . . . Reprogrammed . | . . . . Reused . | . . . . Traps Extracted . | . . . . Installed . | . . . . Triggered . | . . . . Machines | -11 -10 -10 -10 ---------- Run | Yrd Mat Min Sub Machines Disabled . | . . . . Max in Single Turn . | . . . . Machines Repaired . | . . . . Machines Dismantled . | . . . . Machines Sabotaged . | . . . . Overloaded Fab Kills . | . . . . Hacking | -11 -10 -10 -10 --------- Run | Yrd Mat Min Sub Machines Accessed . | . . . . Terminals . | . . . . Fabricators . | . . . . Repair Stations . | . . . . Recycling Units . | . . . . Scanalyzers . | . . . . Garrison Access . | . . . . Total Hacks . | . . . . Successful . | . . . . Failed . | . . . . Catastrophic . | . . . . Database Lockouts . | . . . . Manual . | . . . . Terminals . | . . . . Fabricators . | . . . . Repair Stations . | . . . . Recycling Units . | . . . . Scanalyzers . | . . . . Garrison Access . | . . . . Terminal Hacks . | . . . . Fabricator Hacks . | . . . . Repair Station Hacks . | . . . . Recycling Unit Hacks . | . . . . Scanalyzer . | . . . . Garrison Access Hacks . | . . . . Unauthorized Hacks . | . . . . Terminals . | . . . . Fabricators . | . . . . Repair Stations . | . . . . Recycling Units . | . . . . Scanalyzers . | . . . . Garrison Access . | . . . . Data Cores Recovered . | . . . . Used . | . . . . Hacking Detections . | . . . . Full Trace Events . | . . . . Feedback Events . | . . . . Feedback Blocked . | . . . . Robot Schematics Acquired . | . . . . Robots Built . | . . . . Authchips . | . . . . Time . | . . . . Total Robot Build Rating . | . . . . Part Schematics Acquired . | . . . . Parts Built . | . . . . Authchips . | . . . . Time . | . . . . Total Part Build Rating . | . . . . Part Studies Acquired . | . . . . Parts Repaired . | . . . . Time . | . . . . Parts Recycled . | . . . . Recycled Matter . | . . . . Retrieved Matter . | . . . . Retrieved Components . | . . . . Parts Scanalyzed . | . . . . Part Schematics Acquired . | . . . . Parts Damaged . | . . . . Bothacking | -11 -10 -10 -10 ------------ Run | Yrd Mat Min Sub Used RIF Installer . | . . . . Robots Hacked . | . . . . Non-combat . | . . . . Combat . | . . . . Robot Hacks Applied . | . . . . Relay Couplers Released . | . . . . Fabnet Peak Effective % . | . . . . Robots Rewired . | . . . . Allies Hacked . | . . . . Hacks Repelled . | . . . . Allies | -11 -10 -10 -10 -------- Run | Yrd Mat Min Sub Total Allies . | . . . . Largest Group . | . . . . Highest-Rated Group . | . . . . Highest-Rated Ally . | . . . . Total Orders . | . . . . Ally Attacks . | . . . . Total Damage . | . . . . Kills . | . . . . Allies Corrupted . | . . . . Allies Melted . | . . . . Intel | -11 -10 -10 -10 ------- Run | Yrd Mat Min Sub Active Infowar (turns) . | . . . . Robot Analysis Total . | . . . . Derelict Logs Recovered . | . . . . Drone Launches . | . . . . Drone Recoveries . | . . . . Exploration | -11 -10 -10 -10 ------------- Run | Yrd Mat Min Sub Turns Passed 840 | 57 293 289 201 Spaces Moved 613 | 49 241 185 138 Core 15 | 10 . . 5 Treads . | . . . . Legs 304 | . . 171 133 Wheels 294 | 39 241 14 . Hover . | . . . . Flight . | . . . . Fastest Speed 50 | 50 90 90 120 Average Speed 105 | 81 90 117 126 Slowest Speed 250 | 90 90 120 250 Overloaded Moves . | . . . . Propulsion Burnouts . | . . . . Robots Hopped . | . . . . Potential Cave-ins . | . . . . Cave-ins Triggered . | . . . . Exploration Rate (%) 27 | 3 40 56 12 Regions Visited 3 Branch Regions 2 Pre-discovered Areas . | . . . . Known Exits Taken . | . . . . Unknown Exits Taken 3 | 1 1 1 . Scrap Searched . | . . . . Spaces Dug . | . . . . Terrain Destroyed 17 | . . . 17 Melee . | . . . . Projectile . | . . . . AOE 17 | . . . 17 Terrain Rammed . | . . . . Walls Destroyed . | . . . . Machines Disabled . | . . . . Actions | -11 -10 -10 -10 --------- Run | Yrd Mat Min Sub Total 730 | 64 287 226 153 Wait 35 | . 15 18 2 Move 610 | 48 240 184 138 Hop . | . . . . Pick Up 21 | 9 8 3 1 Fast Attach 1 | 1 . . . Attach 10 | 5 1 . 4 Detach . | . . . . Swap 11 | 1 6 3 1 Drop 6 | . 3 3 . Fire 36 | . 14 15 7 Melee . | . . . . Ram . | . . . . Kick . | . . . . Crush . | . . . . Escape Stasis . | . . . . Rewire . | . . . . Trap . | . . . . Miscellaneous . | . . . . Route ------- -11/Scrapyard -10/Materials -10/Mines -10/Subcaves History --------- Turn | Location | Event 5 | -11/Scrapyard | Discovered new exit (range 16) 58 | -11/Scrapyard | Entered Materials 310 | -10/Materials | Build established: Mutant 347 | -10/Materials | Discovered new exit (range 6) 351 | -10/Materials | Entered Mines 444 | -10/Mines | Found a hidden stash of uninstalled traps 637 | -10/Mines | Discovered new exit (range 3) 640 | -10/Mines | Entered Subcaves 641 | -10/Subcaves | Approached by a straggling Scientist 769 | -10/Subcaves | Ambushed by swarm of Subdwellers 773 | -10/Subcaves | Ambushed by Subdwellers from Twisted Machinery 773 | -10/Subcaves | Ambushed by Subdwellers from Twisted Machinery 773 | -10/Subcaves | Ambushed by Subdwellers from Twisted Machinery 783 | -10/Subcaves | Core integrity fell below 50% 811 | -10/Subcaves | Lost 4 allies 832 | -10/Subcaves | Ambushed by Subdweller buried in earth 835 | -10/Subcaves | Core integrity fell below 20% 841 | -10/Subcaves | Destroyed by W1-3O4(R) with Subdweller Beam Cannon Last Messages --------------- 00792_ JU-LAN(R) destroyed. 00792_ 4K-9T9(R) destroyed. 5I-TQ0(c): "I think it's somewhere east of here" 00795_ QV-FQZ(R) affixes Scrap Shield Fragment to Scrap Shield. 00797_ Critical hit (Meltdown: +280). 00799_ Critical hit (Meltdown: +250). 00803_ QV-FQZ(R) affixes Scrap Shield Fragment to Scrap Shield. 00820_ QV-FQZ(R) destroyed. 00821_ Imp. Heat Sink destroyed. 00823_ Ion Engine destroyed. 00823_ Grenade Launcher destroyed. 00823_ Aluminum Leg destroyed. 00823_ A9-YDC(R) destroyed. 00823_ TL-ODB(R) destroyed. 00825_ Aluminum Leg destroyed. 00825_ Grenade Launcher destroyed. 00833_ W1-3O4(R): "FREEEEDUMB!" 00834_ Assault Rifle destroyed. 00834_ Critical hit (Meltdown: +270). 00836_ Assault Rifle destroyed. Map ----- +----------------------------------------------------+ | ?????????????????????????????????????????????????? | | ?????????????????????????????????????????????????? | | ?????????????????????????????????????????????????? | | ?????????????????????????????????????????????????? | | ?????????????????????????????????????????????????? | | ?????????????????????????????????????????????????? | | ?????????????????????????????????????????????????? | | ?????????????????????????????????????????????????? | | ?????????????????????????????????????????????????? | | ?????????????????????????????????????????????????? | | ??????????????????????? ?????????????????????????? | | ?????????????????????? ?????????????????????????? | | ?????????????????????? ?????????????????????????? | | ??????????????????????# ????????????????????????? | | ??????????????????????# ????????????????????????? | | ?????????????????????? #???????????????????????? | | ??????????????????????# ???????????????????????? | | ?????????????????????## ???????????????????????? | | ?????????????????????# ???????????????????????? | | ?????????????????????# ???????????????????????? | | ?????????????????????? #???????????????????????? | | ??????????????????????# ##??????????????????????? | | ?????????????????????## #????#?????????????????? | | ?????????????????????# #??? #?????????????????? | | ????????????????####### ### ##????????????????? | | ????????????????# ; @ #????????????????? | | ????????????????# ### ?????????? | | ????????????????# R ##????????????????????? | | ????????????????# #????????????????????? | | ???????????????## #????????????????????? | | ?? ??????????# ##????????????????????? | | ?? ???????##; #????????????????????? | | ?? #?????## ##????????????????????? | | ?? ##????# ##???????????????????? | | ?? ##???# #???????#???????????? | | ?? ##??## # #?????? ##??????????? | | #? ###?### #????? ####???????? | | ## ???# ##???? #???????? | | ? ?????## % ###? #???????? | | #?? #???????# = ## #???????? | | #??# #????????## %*% ! #????????? | | #### #?????????# #?????????? | | #??????????# ## ###?????????? | | ##????###?### ##??##???????????? | | #???## ### # # # # ???????????????? | | ###???# # # ??????????????? | | ######## # * ##?????????????? | | ### ### ## # # =%[ #??????????????? | | ##?# # ##### ## =%% [#??????????????? | | #??# ###???## # !=%####???????????? | +----------------------------------------------------+ Best States ------------- Heat Dissipation 39 Energy Generation 14 Energy Capacity 250 Matter Stores 204 Matter Capacity 300 Sight Range 16 Terrain Scan Density 10 Power Shielding 33 Evasion (%) 55 Item Schematics ----------------- None Robot Schematics ------------------ None Fabricated ------------ Nothing Repaired ---------- Nothing Studied --------- None Alien Tech Used ----------------- None Achievements -------------- None Challenges ------------ None Game ------ Seed HeavyFactoryAutogun Manual? 0 Play Time 00:09:48 Cumulative 21.7 hours Start 2025.10.30 @ 23:30:24 End 2025.10.30 @ 23:41:40 Sessions 1 Manual Loads 0 Difficulty Rogue Special Mode None Game No. 25 Rogue 25 Adventurer 0 Explorer 0 Win Type - Total 0 Types 0/0/0/0/0/0/0/0/0/0 Lore% 10 Gallery% 21 Achievement% 13 Wizard Run 0 Options --------- Layout 0 ASCII 0 Keyboard 0 Movement Mouse Keybinds 0 Fullscreen 2 Font 24/Terminus Map View 183x50 Zoom Use 0% Tactical HUD 1 Map Filters NONE Filters NONE Steam 1 RUN: 769b7672-4df5-4c31-96ea-995dbbaa6ded